Workbook

Sheet Aléa
D2: Tirage aléatoire | L2: 1 000 000 fois 36 tirages | P2: 1000000
B4: N° | C4: Dé 1 | D4: Dé 2 | E4: Dé 3 | G4: Egalité | I4: nb de Oui | J4: nb de n | L4: Comptage du nombre de "n" (le prof qui gagne) à chaque groupe de 36 tirages
B5: 1 | C5: =1+INT(6*RAND()) -> 4 | D5: =1+INT(6*RAND()) -> 1 | E5: 1 | G5: =IF(OR(C5=D5,C5=E5,D5=E5),"Oui","n") -> Oui | I5: =COUNTIF($G$5:$G$40,"Oui") -> 18 | J5: =COUNTIF($G$5:$G$40,"n") -> 18
B6: 2 | C6: =1+INT(6*RAND()) -> 4 | D6: 5 | E6: 1 | G6: =IF(OR(C6=D6,C6=E6,D6=E6),"Oui","n") -> n | L6: X = k = | M6: nb | N6: Théorie | O6: Cumuls partiels
B7: 3 | C7: 6 | D7: 2 | E7: 1 | G7: n | I7: % de Oui | J7: % de n | R7: Début | T7: 2020-07-23T19:55:19
B8: 4 | C8: 3 | D8: 5 | E8: 2 | G8: n | I8: =100*I5/36 -> 50 | J8: =100*J5/36 -> 50 | L8: 0 | M8: 0 | N8: =1000000*'Proba 36 fois'!D27 -> 2.096183741e-07 | O8: =SUM(N8:N25) -> 200508.2934 | R8: Fin | T8: 2020-07-23T21:22:13
B9: 5 | C9: 5 | D9: 4 | E9: 4 | G9: Oui | L9: 1 | M9: 0 | N9: =1000000*'Proba 36 fois'!D28 -> 9.432826833e-06
B10: 6 | C10: 3 | D10: 2 | E10: 2 | G10: Oui | L10: 2 | M10: 0 | N10: =1000000*'Proba 36 fois'!D29 -> 0.000206343087 | R10: Cumul des "Oui" | T10: 16002445
B11: 7 | C11: 2 | D11: 4 | E11: 4 | G11: Oui | L11: 3 | M11: 0 | N11: =1000000*'Proba 36 fois'!D30 -> 0.002923193732 | R11: Moyenne du % des Oui | T11: =100*T10/36/P2 -> 44.45123611
B12: 8 | C12: 1 | D12: 2 | E12: 4 | G12: n | L12: 4 | M12: 0 | N12: =1000000*'Proba 36 fois'!D31 -> 0.03014543536 | R12: Théorie : 4/9 | T12: =400/9 -> 44.44444444
B13: 9 | C13: 4 | D13: 6 | E13: 5 | G13: n | L13: 5 | M13: 0 | N13: =1000000*'Proba 36 fois'!D32 -> 0.2411634829
B14: 10 | C14: 5 | D14: 4 | E14: 1 | G14: n | L14: 6 | M14: 1 | N14: =1000000*'Proba 36 fois'!D33 -> 1.55751416
B15: 11 | C15: 4 | D15: 2 | E15: 6 | G15: n | L15: 7 | M15: 8 | N15: =1000000*'Proba 36 fois'!D34 -> 8.343825859
B16: 12 | C16: 2 | D16: 4 | E16: 4 | G16: Oui | L16: 8 | M16: 42 | N16: =1000000*'Proba 36 fois'!D35 -> 37.80796092 | R16: Conclusions
B17: 13 | C17: 5 | D17: 3 | E17: 1 | G17: n | L17: 9 | M17: 151 | N17: =1000000*'Proba 36 fois'!D36 -> 147.0309591
B18: 14 | C18: 5 | D18: 4 | E18: 4 | G18: Oui | L18: 10 | M18: 520 | N18: =1000000*'Proba 36 fois'!D37 -> 496.2294871 | R18: Pour un lancer des trois dés, le prof a 5 chances sur 9 de gagner, 55,56 %
B19: 15 | C19: 3 | D19: 3 | E19: 1 | G19: Oui | L19: 11 | M19: 1478 | N19: =1000000*'Proba 36 fois'!D38 -> 1466.132576 | R19: Pour 36 lancers des trois dés,
B20: 16 | C20: 1 | D20: 3 | E20: 3 | G20: Oui | L20: 12 | M20: 3851 | N20: =1000000*'Proba 36 fois'!D39 -> 3818.053582 | S20: Le prof perd dans | U20: 20 | V20: % des cas
B21: 17 | C21: 5 | D21: 2 | E21: 3 | G21: n | L21: 13 | M21: 8760 | N21: =1000000*'Proba 36 fois'!D40 -> 8810.892882 | S21: Le gain est nul dans | U21: 11 | V21: % des cas
B22: 18 | C22: 3 | D22: 6 | E22: 1 | G22: n | L22: 14 | M22: 18194 | N22: =1000000*'Proba 36 fois'!D41 -> 18093.79788 | S22: Le prof a un gain positif dans | U22: 69 | V22: % des cas
B23: 19 | C23: 2 | D23: 4 | E23: 3 | G23: n | L23: 15 | M23: 33240 | N23: =1000000*'Proba 36 fois'!D42 -> 33171.96279
B24: 20 | C24: 1 | D24: 3 | E24: 6 | G24: n | L24: 16 | M24: 54763 | N24: =1000000*'Proba 36 fois'!D43 -> 54422.75145
B25: 21 | C25: 5 | D25: 5 | E25: 1 | G25: Oui | L25: 17 | M25: 79709 | N25: =1000000*'Proba 36 fois'!D44 -> 80033.45801
B26: 22 | C26: 4 | D26: 4 | E26: 5 | G26: Oui | L26: 18 | M26: 105308 | N26: =1000000*'Proba 36 fois'!D45 -> 105599.7015 | O26: =N26 -> 105599.7015
B27: 23 | C27: 5 | D27: 2 | E27: 5 | G27: Oui | L27: 19 | M27: 125266 | N27: =1000000*'Proba 36 fois'!D46 -> 125052.2781 | O27: =SUM(N27:N44) -> 693892.0051
B28: 24 | C28: 6 | D28: 3 | E28: 5 | G28: n | L28: 20 | M28: 133249 | N28: =1000000*'Proba 36 fois'!D47 -> 132868.0455
B29: 25 | C29: 3 | D29: 1 | E29: 3 | G29: Oui | L29: 21 | M29: 126300 | N29: =1000000*'Proba 36 fois'!D48 -> 126540.9957
B30: 26 | C30: 1 | D30: 3 | E30: 4 | G30: n | L30: 22 | M30: 108152 | N30: =1000000*'Proba 36 fois'!D49 -> 107847.4395
B31: 27 | C31: 3 | D31: 5 | E31: 6 | G31: n | L31: 23 | M31: 81751 | N31: =1000000*'Proba 36 fois'!D50 -> 82057.83444
B32: 28 | C32: 1 | D32: 3 | E32: 4 | G32: n | L32: 24 | M32: 55300 | N32: =1000000*'Proba 36 fois'!D51 -> 55559.99207
B33: 29 | C33: 1 | D33: 5 | E33: 5 | G33: Oui | L33: 25 | M33: 33273 | N33: =1000000*'Proba 36 fois'!D52 -> 33335.99524
B34: 30 | C34: 3 | D34: 3 | E34: 3 | G34: Oui | L34: 26 | M34: 17612 | N34: =1000000*'Proba 36 fois'!D53 -> 17629.61287
B35: 31 | C35: 1 | D35: 5 | E35: 1 | G35: Oui | L35: 27 | M35: 8269 | N35: =1000000*'Proba 36 fois'!D54 -> 8161.857809
B36: 32 | C36: 1 | D36: 1 | E36: 6 | G36: Oui | L36: 28 | M36: 3252 | N36: =1000000*'Proba 36 fois'!D55 -> 3279.31787
B37: 33 | C37: 5 | D37: 2 | E37: 6 | G37: n | L37: 29 | M37: 1134 | N37: =1000000*'Proba 36 fois'!D56 -> 1130.799265
B38: 34 | C38: 3 | D38: 5 | E38: 1 | G38: n | L38: 30 | M38: 332 | N38: =1000000*'Proba 36 fois'!D57 -> 329.8164524
B39: 35 | C39: 3 | D39: 3 | E39: 2 | G39: Oui | L39: 31 | M39: 77 | N39: =1000000*'Proba 36 fois'!D58 -> 79.794303
B40: 36 | C40: 2 | D40: 2 | E40: 6 | G40: Oui | L40: 32 | M40: 7 | N40: =1000000*'Proba 36 fois'!D59 -> 15.58482481
L41: 33 | M41: 1 | N41: =1000000*'Proba 36 fois'!D60 -> 2.361337092
L42: 34 | M42: 0 | N42: =1000000*'Proba 36 fois'!D61 -> 0.260441591
L43: 35 | M43: 0 | N43: =1000000*'Proba 36 fois'!D62 -> 0.01860297079
L44: 36 | M44: 0 | N44: =1000000*'Proba 36 fois'!D63 -> 0.0006459364856

Sheet Liste
D2: Liste des jetés de dés
C4: Dé 1 | D4: Dé 2 | E4: Dé 3 | G4: Egalité | I4: nb de Oui | J4: nb de n
C5: 1 | D5: 1 | E5: 1 | G5: =IF(OR(C5=D5,C5=E5,D5=E5),"Oui","n") -> Oui | I5: =COUNTIF($G$5:$G$220,"Oui") -> 96 | J5: =COUNTIF($G$5:$G$220,"n") -> 120
C6: 1 | D6: 1 | E6: 2 | G6: =IF(OR(C6=D6,C6=E6,D6=E6),"Oui","n") -> Oui
C7: 1 | D7: 1 | E7: 3 | G7: =IF(OR(C7=D7,C7=E7,D7=E7),"Oui","n") -> Oui | J7: % de Oui
C8: 1 | D8: 1 | E8: 4 | G8: Oui | J8: =100*I5/216 -> 44.44444444
C9: 1 | D9: 1 | E9: 5 | G9: Oui
C10: 1 | D10: 1 | E10: 6 | G10: Oui
C11: 1 | D11: 2 | E11: 1 | G11: Oui
C12: 1 | D12: 2 | E12: 2 | G12: Oui
C13: 1 | D13: 2 | E13: 3 | G13: n
C14: 1 | D14: 2 | E14: 4 | G14: n
C15: 1 | D15: 2 | E15: 5 | G15: n
C16: 1 | D16: 2 | E16: 6 | G16: n
C17: 1 | D17: 3 | E17: 1 | G17: Oui
C18: 1 | D18: 3 | E18: 2 | G18: n
C19: 1 | D19: 3 | E19: 3 | G19: Oui
C20: 1 | D20: 3 | E20: 4 | G20: n
C21: 1 | D21: 3 | E21: 5 | G21: n
C22: 1 | D22: 3 | E22: 6 | G22: n
C23: 1 | D23: 4 | E23: 1 | G23: Oui
C24: 1 | D24: 4 | E24: 2 | G24: n
C25: 1 | D25: 4 | E25: 3 | G25: n
C26: 1 | D26: 4 | E26: 4 | G26: Oui
C27: 1 | D27: 4 | E27: 5 | G27: n
C28: 1 | D28: 4 | E28: 6 | G28: n
C29: 1 | D29: 5 | E29: 1 | G29: Oui
C30: 1 | D30: 5 | E30: 2 | G30: n
C31: 1 | D31: 5 | E31: 3 | G31: n
C32: 1 | D32: 5 | E32: 4 | G32: n
C33: 1 | D33: 5 | E33: 5 | G33: Oui
C34: 1 | D34: 5 | E34: 6 | G34: n
C35: 1 | D35: 6 | E35: 1 | G35: Oui
C36: 1 | D36: 6 | E36: 2 | G36: n
C37: 1 | D37: 6 | E37: 3 | G37: n
C38: 1 | D38: 6 | E38: 4 | G38: n
C39: 1 | D39: 6 | E39: 5 | G39: n
C40: 1 | D40: 6 | E40: 6 | G40: Oui
C41: 2 | D41: 1 | E41: 1 | G41: Oui
C42: 2 | D42: 1 | E42: 2 | G42: Oui
C43: 2 | D43: 1 | E43: 3 | G43: n
C44: 2 | D44: 1 | E44: 4 | G44: n
C45: 2 | D45: 1 | E45: 5 | G45: n
C46: 2 | D46: 1 | E46: 6 | G46: n
C47: 2 | D47: 2 | E47: 1 | G47: Oui
C48: 2 | D48: 2 | E48: 2 | G48: Oui
C49: 2 | D49: 2 | E49: 3 | G49: Oui
C50: 2 | D50: 2 | E50: 4 | G50: Oui
C51: 2 | D51: 2 | E51: 5 | G51: Oui
C52: 2 | D52: 2 | E52: 6 | G52: Oui
C53: 2 | D53: 3 | E53: 1 | G53: n
C54: 2 | D54: 3 | E54: 2 | G54: Oui
C55: 2 | D55: 3 | E55: 3 | G55: Oui
C56: 2 | D56: 3 | E56: 4 | G56: n
C57: 2 | D57: 3 | E57: 5 | G57: n
C58: 2 | D58: 3 | E58: 6 | G58: n
C59: 2 | D59: 4 | E59: 1 | G59: n
C60: 2 | D60: 4 | E60: 2 | G60: Oui
C61: 2 | D61: 4 | E61: 3 | G61: n
C62: 2 | D62: 4 | E62: 4 | G62: Oui
C63: 2 | D63: 4 | E63: 5 | G63: n
C64: 2 | D64: 4 | E64: 6 | G64: n
C65: 2 | D65: 5 | E65: 1 | G65: n
C66: 2 | D66: 5 | E66: 2 | G66: Oui
C67: 2 | D67: 5 | E67: 3 | G67: n
C68: 2 | D68: 5 | E68: 4 | G68: n
C69: 2 | D69: 5 | E69: 5 | G69: Oui
C70: 2 | D70: 5 | E70: 6 | G70: n
C71: 2 | D71: 6 | E71: 1 | G71: =IF(OR(C71=D71,C71=E71,D71=E71),"Oui","n") -> n
C72: 2 | D72: 6 | E72: 2 | G72: Oui
C73: 2 | D73: 6 | E73: 3 | G73: n
C74: 2 | D74: 6 | E74: 4 | G74: n
C75: 2 | D75: 6 | E75: 5 | G75: n
C76: 2 | D76: 6 | E76: 6 | G76: Oui
C77: 3 | D77: 1 | E77: 1 | G77: Oui
C78: 3 | D78: 1 | E78: 2 | G78: n
C79: 3 | D79: 1 | E79: 3 | G79: Oui
C80: 3 | D80: 1 | E80: 4 | G80: n
C81: 3 | D81: 1 | E81: 5 | G81: n
C82: 3 | D82: 1 | E82: 6 | G82: n
C83: 3 | D83: 2 | E83: 1 | G83: n
C84: 3 | D84: 2 | E84: 2 | G84: Oui
C85: 3 | D85: 2 | E85: 3 | G85: Oui
C86: 3 | D86: 2 | E86: 4 | G86: n
C87: 3 | D87: 2 | E87: 5 | G87: n
C88: 3 | D88: 2 | E88: 6 | G88: n
C89: 3 | D89: 3 | E89: 1 | G89: Oui
C90: 3 | D90: 3 | E90: 2 | G90: Oui
C91: 3 | D91: 3 | E91: 3 | G91: Oui
C92: 3 | D92: 3 | E92: 4 | G92: Oui
C93: 3 | D93: 3 | E93: 5 | G93: Oui
C94: 3 | D94: 3 | E94: 6 | G94: Oui
C95: 3 | D95: 4 | E95: 1 | G95: n
C96: 3 | D96: 4 | E96: 2 | G96: n
C97: 3 | D97: 4 | E97: 3 | G97: Oui
C98: 3 | D98: 4 | E98: 4 | G98: Oui
C99: 3 | D99: 4 | E99: 5 | G99: n
C100: 3 | D100: 4 | E100: 6 | G100: n
C101: 3 | D101: 5 | E101: 1 | G101: n
C102: 3 | D102: 5 | E102: 2 | G102: n
C103: 3 | D103: 5 | E103: 3 | G103: Oui
C104: 3 | D104: 5 | E104: 4 | G104: n
C105: 3 | D105: 5 | E105: 5 | G105: Oui
C106: 3 | D106: 5 | E106: 6 | G106: n
C107: 3 | D107: 6 | E107: 1 | G107: n
C108: 3 | D108: 6 | E108: 2 | G108: n
C109: 3 | D109: 6 | E109: 3 | G109: Oui
C110: 3 | D110: 6 | E110: 4 | G110: n
C111: 3 | D111: 6 | E111: 5 | G111: n
C112: 3 | D112: 6 | E112: 6 | G112: Oui
C113: 4 | D113: 1 | E113: 1 | G113: Oui
C114: 4 | D114: 1 | E114: 2 | G114: n
C115: 4 | D115: 1 | E115: 3 | G115: n
C116: 4 | D116: 1 | E116: 4 | G116: Oui
C117: 4 | D117: 1 | E117: 5 | G117: n
C118: 4 | D118: 1 | E118: 6 | G118: n
C119: 4 | D119: 2 | E119: 1 | G119: n
C120: 4 | D120: 2 | E120: 2 | G120: Oui
C121: 4 | D121: 2 | E121: 3 | G121: n
C122: 4 | D122: 2 | E122: 4 | G122: Oui
C123: 4 | D123: 2 | E123: 5 | G123: n
C124: 4 | D124: 2 | E124: 6 | G124: n
C125: 4 | D125: 3 | E125: 1 | G125: n
C126: 4 | D126: 3 | E126: 2 | G126: n
C127: 4 | D127: 3 | E127: 3 | G127: Oui
C128: 4 | D128: 3 | E128: 4 | G128: Oui
C129: 4 | D129: 3 | E129: 5 | G129: n
C130: 4 | D130: 3 | E130: 6 | G130: n
C131: 4 | D131: 4 | E131: 1 | G131: Oui
C132: 4 | D132: 4 | E132: 2 | G132: Oui
C133: 4 | D133: 4 | E133: 3 | G133: Oui
C134: 4 | D134: 4 | E134: 4 | G134: Oui
C135: 4 | D135: 4 | E135: 5 | G135: =IF(OR(C135=D135,C135=E135,D135=E135),"Oui","n") -> Oui
C136: 4 | D136: 4 | E136: 6 | G136: Oui
C137: 4 | D137: 5 | E137: 1 | G137: n
C138: 4 | D138: 5 | E138: 2 | G138: n
C139: 4 | D139: 5 | E139: 3 | G139: n
C140: 4 | D140: 5 | E140: 4 | G140: Oui
C141: 4 | D141: 5 | E141: 5 | G141: Oui
C142: 4 | D142: 5 | E142: 6 | G142: n
C143: 4 | D143: 6 | E143: 1 | G143: n
C144: 4 | D144: 6 | E144: 2 | G144: n
C145: 4 | D145: 6 | E145: 3 | G145: n
C146: 4 | D146: 6 | E146: 4 | G146: Oui
C147: 4 | D147: 6 | E147: 5 | G147: n
C148: 4 | D148: 6 | E148: 6 | G148: Oui
C149: 5 | D149: 1 | E149: 1 | G149: Oui
C150: 5 | D150: 1 | E150: 2 | G150: n
C151: 5 | D151: 1 | E151: 3 | G151: n
C152: 5 | D152: 1 | E152: 4 | G152: n
C153: 5 | D153: 1 | E153: 5 | G153: Oui
C154: 5 | D154: 1 | E154: 6 | G154: n
C155: 5 | D155: 2 | E155: 1 | G155: n
C156: 5 | D156: 2 | E156: 2 | G156: Oui
C157: 5 | D157: 2 | E157: 3 | G157: n
C158: 5 | D158: 2 | E158: 4 | G158: n
C159: 5 | D159: 2 | E159: 5 | G159: Oui
C160: 5 | D160: 2 | E160: 6 | G160: n
C161: 5 | D161: 3 | E161: 1 | G161: n
C162: 5 | D162: 3 | E162: 2 | G162: n
C163: 5 | D163: 3 | E163: 3 | G163: Oui
C164: 5 | D164: 3 | E164: 4 | G164: n
C165: 5 | D165: 3 | E165: 5 | G165: Oui
C166: 5 | D166: 3 | E166: 6 | G166: n
C167: 5 | D167: 4 | E167: 1 | G167: n
C168: 5 | D168: 4 | E168: 2 | G168: n
C169: 5 | D169: 4 | E169: 3 | G169: n
C170: 5 | D170: 4 | E170: 4 | G170: Oui
C171: 5 | D171: 4 | E171: 5 | G171: Oui
C172: 5 | D172: 4 | E172: 6 | G172: n
C173: 5 | D173: 5 | E173: 1 | G173: Oui
C174: 5 | D174: 5 | E174: 2 | G174: Oui
C175: 5 | D175: 5 | E175: 3 | G175: Oui
C176: 5 | D176: 5 | E176: 4 | G176: Oui
C177: 5 | D177: 5 | E177: 5 | G177: Oui
C178: 5 | D178: 5 | E178: 6 | G178: Oui
C179: 5 | D179: 6 | E179: 1 | G179: n
C180: 5 | D180: 6 | E180: 2 | G180: n
C181: 5 | D181: 6 | E181: 3 | G181: n
C182: 5 | D182: 6 | E182: 4 | G182: n
C183: 5 | D183: 6 | E183: 5 | G183: Oui
C184: 5 | D184: 6 | E184: 6 | G184: Oui
C185: 6 | D185: 1 | E185: 1 | G185: Oui
C186: 6 | D186: 1 | E186: 2 | G186: n
C187: 6 | D187: 1 | E187: 3 | G187: n
C188: 6 | D188: 1 | E188: 4 | G188: n
C189: 6 | D189: 1 | E189: 5 | G189: n
C190: 6 | D190: 1 | E190: 6 | G190: Oui
C191: 6 | D191: 2 | E191: 1 | G191: n
C192: 6 | D192: 2 | E192: 2 | G192: Oui
C193: 6 | D193: 2 | E193: 3 | G193: n
C194: 6 | D194: 2 | E194: 4 | G194: n
C195: 6 | D195: 2 | E195: 5 | G195: n
C196: 6 | D196: 2 | E196: 6 | G196: Oui
C197: 6 | D197: 3 | E197: 1 | G197: n
C198: 6 | D198: 3 | E198: 2 | G198: n
C199: 6 | D199: 3 | E199: 3 | G199: =IF(OR(C199=D199,C199=E199,D199=E199),"Oui","n") -> Oui
C200: 6 | D200: 3 | E200: 4 | G200: n
C201: 6 | D201: 3 | E201: 5 | G201: n
C202: 6 | D202: 3 | E202: 6 | G202: Oui
... 18 more rows

Sheet Proba 36 fois
D2: Proba que x = k (loi binomiale)
B4: Voir : | C4: https://www.youtube.com/watch?v=rPUlc-Jn28Y
C8: Sur n épreuves à 2 issues avec succès du prof = 5/9 et succès de l'élève = 4/9
C10: Donc calculer | E10: pour | F10: n = 36
F11: p = 5/9 | I11: Somme des proba pour X = 0 à X = 17 | M11: =SUM(D27:D44) -> 0.2005082934
F12: (1 - p) = 4/9 | I12: Proba que X = 18 | M12: =D45 -> 0.1055997015
I13: Somme des proba pour X = 19 à X = 36 | M13: =SUM(D46:D63) -> 0.6938920051
E14: avec | F14: k de 0 à 36
F15: n - k de 36 à 0
E17: et avec
E20: C’est-à-dire :
F24: Cumul
C25: k | E25: Cumul | F25: inverse
C27: 0 | D27: =FACT(36)/FACT(C27)/FACT(36-C27)*(5/9)^C27*(4/9)^(36-C27) -> 2.096183741e-13 | E27: =D27 -> 2.096183741e-13 | F27: =F28+D27 -> 1
C28: 1 | D28: =FACT(36)/FACT(C28)/FACT(36-C28)*(5/9)^C28*(4/9)^(36-C28) -> 9.432826833e-12 | E28: =E27+D28 -> 9.642445207e-12 | F28: =F29+D28 -> 1
C29: 2 | D29: 2.06343087e-10 | E29: =E28+D29 -> 2.159855322e-10 | F29: =F30+D29 -> 1
C30: 3 | D30: 2.923193732e-09 | E30: 3.139179264e-09 | F30: =F31+D30 -> 0.9999999998
C31: 4 | D31: 3.014543536e-08 | E31: 3.328461463e-08 | F31: =F32+D31 -> 0.9999999969
C32: 5 | D32: 2.411634829e-07 | E32: 2.744480975e-07 | F32: =F33+D32 -> 0.9999999667
C33: 6 | D33: 1.55751416e-06 | E33: 1.831962258e-06 | F33: =F34+D33 -> 0.9999997256
C34: 7 | D34: 8.343825859e-06 | E34: 1.017578812e-05 | F34: =F35+D34 -> 0.999998168
C35: 8 | D35: 3.780796092e-05 | E35: 4.798374904e-05 | F35: =F36+D35 -> 0.9999898242
C36: 9 | D36: 0.0001470309591 | E36: 0.0001950147082 | F36: =F37+D36 -> 0.9999520163
C37: 10 | D37: 0.0004962294871 | E37: 0.0006912441953 | F37: =F38+D37 -> 0.9998049853
C38: 11 | D38: 0.001466132576 | E38: 0.002157376771 | F38: =F39+D38 -> 0.9993087558
C39: 12 | D39: 0.003818053582 | E39: 0.005975430353 | F39: =F40+D39 -> 0.9978426232
C40: 13 | D40: 0.008810892882 | E40: 0.01478632324 | F40: =F41+D40 -> 0.9940245696
C41: 14 | D41: 0.01809379788 | E41: 0.03288012112 | F41: =F42+D41 -> 0.9852136768
C42: 15 | D42: 0.03317196279 | E42: 0.0660520839 | F42: =F43+D42 -> 0.9671198789
C43: 16 | D43: 0.05442275145 | E43: 0.1204748353 | F43: =F44+D43 -> 0.9339479161
C44: 17 | D44: 0.08003345801 | E44: 0.2005082934 | F44: =F45+D44 -> 0.8795251647
C45: 18 | D45: 0.1055997015 | E45: 0.3061079949 | F45: =F46+D45 -> 0.7994917066
C46: 19 | D46: 0.1250522781 | E46: 0.431160273 | F46: =F47+D46 -> 0.6938920051
C47: 20 | D47: 0.1328680455 | E47: 0.5640283186 | F47: =F48+D47 -> 0.568839727
C48: 21 | D48: 0.1265409957 | E48: 0.6905693143 | F48: =F49+D48 -> 0.4359716814
C49: 22 | D49: 0.1078474395 | E49: 0.7984167538 | F49: =F50+D49 -> 0.3094306857
C50: 23 | D50: 0.08205783444 | E50: 0.8804745883 | F50: =F51+D50 -> 0.2015832462
C51: 24 | D51: 0.05555999207 | E51: 0.9360345803 | F51: =F52+D51 -> 0.1195254117
C52: 25 | D52: 0.03333599524 | E52: 0.9693705756 | F52: =F53+D52 -> 0.06396541966
C53: 26 | D53: 0.01762961287 | E53: 0.9870001884 | F53: =F54+D53 -> 0.03062942442
C54: 27 | D54: 0.008161857809 | E54: 0.9951620463 | F54: =F55+D54 -> 0.01299981155
C55: 28 | D55: 0.00327931787 | E55: 0.9984413641 | F55: =F56+D55 -> 0.004837953743
C56: 29 | D56: 0.001130799265 | E56: 0.9995721634 | F56: =F57+D56 -> 0.001558635873
C57: 30 | D57: 0.0003298164524 | E57: 0.9999019798 | F57: =F58+D57 -> 0.0004278366078
C58: 31 | D58: 7.9794303e-05 | E58: 0.9999817741 | F58: =F59+D58 -> 9.80201554e-05
C59: 32 | D59: 1.558482481e-05 | E59: 0.999997359 | F59: =F60+D59 -> 1.82258524e-05
C60: 33 | D60: 2.361337092e-06 | E60: 0.9999997203 | F60: =F61+D60 -> 2.64102759e-06
C61: 34 | D61: 2.60441591e-07 | E61: 0.9999999808 | F61: =F62+D61 -> 2.796904983e-07
C62: 35 | D62: 1.860297079e-08 | E62: 0.9999999994 | F62: =F63+D62 -> 1.924890727e-08
C63: 36 | D63: 6.459364856e-10 | E63: 1 | F63: =D63 -> 6.459364856e-10

Sheet 100 fois
C2: Et si on jouait 100 fois !
H6: Cumuls
C7: k | H7: partiels
C9: 0 | D9: =FACT(100)/FACT(C9)/FACT(100-C9) -> 1 | E9: =(5/9)^C9 -> 1 | F9: =(4/9)^(100-C9) -> 6.049899898e-36 | G9: =FACT(100)/FACT(C9)/FACT(100-C9)*(5/9)^C9*(4/9)^(100-C9) -> 6.049899898e-36 | H9: =SUM(G9:G58) -> 0.1117323996
C10: 1 | D10: =FACT(100)/FACT(C10)/FACT(100-C10) -> 100 | E10: =(5/9)^C10 -> 0.5555555556 | F10: =(4/9)^(100-C10) -> 1.361227477e-35 | G10: =FACT(100)/FACT(C10)/FACT(100-C10)*(5/9)^C10*(4/9)^(100-C10) -> 7.562374873e-34
C11: 2 | D11: 4950 | E11: 0.3086419753 | F11: 3.062761823e-35 | G11: 4.679219453e-32
C12: 3 | D12: 161700 | E12: 0.1714677641 | F12: 6.891214103e-35 | G12: 1.910681276e-30
C13: 4 | D13: 3921225 | E13: 0.09525986892 | F13: 1.550523173e-34 | G13: 5.791752619e-29
C14: 5 | D14: 75287520 | E14: 0.0529221494 | F14: 3.48867714e-34 | G14: 1.390020629e-27
C15: 6 | D15: 1192052400 | E15: 0.02940119411 | F15: 7.849523564e-34 | G15: 2.751082494e-26
C16: 7 | D16: 1.60075608e+10 | E16: 0.01633399673 | F16: 1.766142802e-33 | G16: 4.617888472e-25
C17: 8 | D17: 1.860878943e+11 | E17: 0.009074442627 | F17: 3.973821304e-33 | G17: 6.710369186e-24
C18: 9 | D18: 1902231808400 | E18: 0.005041357015 | F18: 8.941097935e-33 | G18: 8.574360627e-23
C19: 10 | D19: 1.731030946e+13 | E19: 0.002800753897 | F19: 2.011747035e-32 | G19: 9.753335213e-22
C20: 11 | D20: 141629804643600 | E20: 0.001555974387 | F20: 4.526430829e-32 | G20: 9.975001923e-21
C21: 12 | D21: 1.050421051e+15 | E21: 0.0008644302152 | F21: 1.018446937e-31 | G21: 9.247658032e-20
C22: 13 | D22: 7110542499799204 | E22: 0.0004802390084 | F22: 2.291505607e-31 | G22: 7.824941412e-19
C23: 14 | D23: 4.418694268e+16 | E23: 0.0002667994491 | F23: 5.155887617e-31 | G23: 6.078302704e-18
C24: 15 | D24: 2.533384713e+17 | E24: 0.0001482219162 | F24: 1.160074714e-30 | G24: 4.356116938e-17
C25: 16 | D25: 1.345860629e+18 | E25: 8.234550899e-05 | F25: 2.610168106e-30 | G25: 2.892733904e-16
C26: 17 | D26: 6.650134873e+18 | E26: 4.5747505e-05 | F26: 5.872878238e-30 | G26: 1.786688588e-15
C27: 18 | D27: 3.06645108e+19 | E27: 2.541528055e-05 | F27: 1.321397604e-29 | G27: 1.02982745e-14
C28: 19 | D28: 1.323415729e+20 | E28: 1.411960031e-05 | F28: 2.973144608e-29 | G28: 5.555648085e-14
C29: 20 | D29: 5.359833704e+20 | E29: 7.844222393e-06 | F29: 6.689575368e-29 | G29: 2.812546843e-13
C30: 21 | D30: 2.041841411e+21 | E30: 4.357901329e-06 | F30: 1.505154458e-28 | G30: 1.33930802e-12
C31: 22 | D31: 7.332066885e+21 | E31: 2.421056294e-06 | F31: 3.38659753e-28 | G31: 6.011666683e-12
C32: 23 | D32: 2.486527031e+22 | E32: 1.345031275e-06 | F32: 7.619844443e-28 | G32: 2.54842392e-11
C33: 24 | D33: 7.977607557e+22 | E33: 7.47239597e-07 | F33: 1.714465e-27 | G33: 1.022024176e-10
C34: 25 | D34: 2.425192697e+23 | E34: 4.151331094e-07 | F34: 3.857546249e-27 | G34: 3.88369187e-10
C35: 26 | D35: 6.995748165e+23 | E35: 2.306295052e-07 | F35: 8.679479061e-27 | G35: 1.400369665e-09
C36: 27 | D36: 1.917353201e+24 | E36: 1.281275029e-07 | F36: 1.952882789e-26 | G36: 4.79756274e-09
C37: 28 | D37: 4.998813702e+24 | E37: 7.118194606e-08 | F37: 4.393986275e-26 | G37: 1.563491429e-08
C38: 29 | D38: 1.241084781e+25 | E38: 3.954552559e-08 | F38: 9.886469118e-26 | G38: 4.852214778e-08
C39: 30 | D39: 2.937233982e+25 | E39: 2.196973644e-08 | F39: 2.224455551e-25 | G39: 1.435446872e-07
C40: 31 | D40: 6.632463831e+25 | E40: 1.220540913e-08 | F40: 5.005024991e-25 | G40: 4.051664558e-07
C41: 32 | D41: 1.430125013e+26 | E41: 6.780782851e-09 | F41: 1.126130623e-24 | G41: 1.092050213e-06
C42: 33 | D42: 2.94692427e+26 | E42: 3.767101584e-09 | F42: 2.533793902e-24 | G42: 2.812856609e-06
C43: 34 | D43: 5.807174297e+26 | E43: 2.092834213e-09 | F43: 5.701036279e-24 | G43: 6.928727676e-06
C44: 35 | D44: 1.095067153e+27 | E44: 1.162685674e-09 | F44: 1.282733163e-23 | G44: 1.633200095e-05
C45: 36 | D45: 1.977204582e+27 | E45: 6.459364856e-10 | F45: 2.886149616e-23 | G45: 3.686041881e-05
C46: 37 | D46: 3.420029547e+27 | E46: 3.588536031e-10 | F46: 6.493836636e-23 | G46: 7.969820284e-05
C47: 38 | D47: 5.670048987e+27 | E47: 1.993631128e-10 | F47: 1.461113243e-22 | G47: 0.0001651640388
C48: 39 | D48: 9.01392403e+27 | E48: 1.107572849e-10 | F48: 3.287504797e-22 | G48: 0.0003282105899
C49: 40 | D49: 1.374623415e+28 | E49: 6.153182495e-11 | F49: 7.396885793e-22 | G49: 0.0006256514369
C50: 41 | D50: 2.011644021e+28 | E50: 3.418434719e-11 | F50: 1.664299303e-21 | G50: 0.001144484336
C51: 42 | D51: 2.825880887e+28 | E51: 1.8991304e-11 | F51: 3.744673433e-21 | G51: 0.002009659995
C52: 43 | D52: 3.81165329e+28 | E52: 1.055072444e-11 | F52: 8.425515224e-21 | G52: 0.003388380223
C53: 44 | D53: 4.93782358e+28 | E53: 5.861513579e-12 | F53: 1.895740925e-20 | G53: 0.005486865703
C54: 45 | D54: 6.144847121e+28 | E54: 3.256396433e-12 | F54: 4.265417082e-20 | G54: 0.008535124426
C55: 46 | D55: 7.347099819e+28 | E55: 1.809109129e-12 | F55: 9.597188435e-20 | G55: 0.01275630009
C56: 47 | D56: 8.441348728e+28 | E56: 1.005060627e-12 | F56: 2.159367398e-19 | G56: 0.01832021822
C57: 48 | D57: 9.320655888e+28 | E57: 5.583670153e-13 | F57: 4.858576645e-19 | G57: 0.02528571786
C58: 49 | D58: 9.891308289e+28 | E58: 3.102038974e-13 | F58: 1.093179745e-18 | G58: 0.03354227879
C59: 50 | D59: 1.008913445e+29 | E59: 1.723354985e-13 | F59: 2.459654427e-18 | G59: 0.04276640545 | H59: =G59 -> 0.04276640545
C60: 51 | D60: 9.891308289e+28 | E60: 9.574194363e-14 | F60: 5.53422246e-18 | G60: 0.05240981061 | H60: =SUM(G60:G109) -> 0.845501195
C61: 52 | D61: 9.320655888e+28 | E61: 5.318996868e-14 | F61: 1.245200053e-17 | G61: 0.06173270961
C62: 53 | D62: 8.441348728e+28 | E62: 2.95499826e-14 | F62: 2.80170012e-17 | G62: 0.06988608635
C63: 54 | D63: 7.347099819e+28 | E63: 1.6416657e-14 | F63: 6.303825271e-17 | G63: 0.07603347357
C64: 55 | D64: 6.144847121e+28 | E64: 9.120365001e-15 | F64: 1.418360686e-16 | G64: 0.07948954055
C65: 56 | D65: 4.93782358e+28 | E65: 5.066869445e-15 | F65: 3.191311543e-16 | G65: 0.07984440457
C66: 57 | D66: 3.81165329e+28 | E66: 2.814927469e-15 | F66: 7.180450972e-16 | G66: 0.07704284652
C67: 58 | D67: 2.825880887e+28 | E67: 1.563848594e-15 | F67: 1.615601469e-15 | G67: 0.07139746552
C68: 59 | D68: 2.011644021e+28 | E68: 8.688047745e-16 | F68: 3.635103305e-15 | G68: 0.06353164305
C69: 60 | D69: 1.374623415e+28 | E69: 4.826693192e-16 | F69: 8.178982436e-15 | G69: 0.05426661177
C70: 61 | D70: 9.01392403e+27 | E70: 2.681496218e-16 | F70: 1.840271048e-14 | G70: 0.04448082932
C71: 62 | D71: 5.670048987e+27 | E71: 1.489720121e-16 | F71: 4.140609858e-14 | G71: 0.03497484564
C72: 63 | D72: 3.420029547e+27 | E72: 8.276222894e-17 | F72: 9.316372181e-14 | G72: 0.0263699233
C73: 64 | D73: 1.977204582e+27 | E73: 4.597901608e-17 | F73: 2.096183741e-13 | G73: 0.01905638988
C74: 65 | D74: =FACT(100)/FACT(C74)/FACT(100-C74) -> 1.095067153e+27 | E74: =(5/9)^C74 -> 2.554389782e-17 | F74: =(4/9)^(100-C74) -> 4.716413416e-13 | G74: =FACT(100)/FACT(C74)/FACT(100-C74)*(5/9)^C74*(4/9)^(100-C74) -> 0.0131928853
C75: 66 | D75: 5.807174297e+26 | E75: 1.419105434e-17 | F75: 1.061193019e-12 | G75: 0.008745283819
C76: 67 | D76: 2.94692427e+26 | E76: 7.88391908e-18 | F76: 2.387684292e-12 | G76: 0.005547381527
C77: 68 | D77: 1.430125013e+26 | E77: 4.379955045e-18 | F77: 5.372289657e-12 | G77: 0.003365139529
C78: 69 | D78: 6.632463831e+25 | E78: 2.433308358e-18 | F78: 1.208765173e-11 | G78: 0.001950805524
C79: 70 | D79: 2.937233982e+25 | E79: 1.351837977e-18 | F79: 2.719721639e-11 | G79: 0.001079910201
C80: 71 | D80: 1.241084781e+25 | E80: 7.510210982e-19 | F80: 6.119373688e-11 | G80: 0.0005703751061
C81: 72 | D81: 4.998813702e+24 | E81: 4.172339434e-19 | F81: 1.37685908e-10 | G81: 0.0002871680222
C82: 73 | D82: 1.917353201e+24 | E82: 2.317966352e-19 | F82: 3.097932929e-10 | G82: 0.0001376832983
C83: 74 | D83: 6.995748165e+23 | E83: 1.287759085e-19 | F83: 6.970349091e-10 | G83: 6.279474753e-05
C84: 75 | D84: 2.425192697e+23 | E84: 7.154217137e-20 | F84: 1.568328545e-09 | G84: 2.721105726e-05
C85: 76 | D85: 7.977607557e+22 | E85: 3.974565076e-20 | F85: 3.528739227e-09 | G85: 1.11887571e-05
C86: 77 | D86: 2.486527031e+22 | E86: 2.208091709e-20 | F86: 7.939663262e-09 | G86: 4.359256012e-06
C87: 78 | D87: 7.332066885e+21 | E87: 1.226717616e-20 | F87: 1.786424234e-08 | G87: 1.606777056e-06
C88: 79 | D88: 2.041841411e+21 | E88: 6.815097867e-21 | F88: 4.019454526e-08 | G88: 5.59321127e-07
C89: 80 | D89: 5.359833704e+20 | E89: 3.786165482e-21 | F89: 9.043772684e-08 | G89: 1.835272448e-07
C90: 81 | D90: 1.323415729e+20 | E90: 2.103425268e-21 | F90: 2.034848854e-07 | G90: 5.664421136e-08
C91: 82 | D91: 3.06645108e+19 | E91: 1.168569593e-21 | F91: 4.578409921e-07 | G91: 1.64060978e-08
C92: 83 | D92: 6.650134873e+18 | E92: 6.492053295e-22 | F92: 1.030142232e-06 | G92: 4.447436151e-09
C93: 84 | D93: 1.345860629e+18 | E93: 3.606696275e-22 | F93: 2.317820023e-06 | G93: 1.125095455e-09
C94: 85 | D94: 2.533384713e+17 | E94: 2.003720153e-22 | F94: 5.215095051e-06 | G94: 2.647283423e-10
C95: 86 | D95: 4.418694268e+16 | E95: 1.113177863e-22 | F95: 1.173396386e-05 | G95: 5.77169351e-11
C96: 87 | D96: 7110542499799205 | E96: 6.184321459e-23 | F96: 2.640141869e-05 | G96: 1.160972833e-11
C97: 88 | D97: 1.050421051e+15 | E97: 3.435734144e-23 | F97: 5.940319206e-05 | G97: 2.143841878e-12
C98: 89 | D98: 141629804643600 | E98: 1.908741191e-23 | F98: 0.0001336571821 | G98: 3.613216649e-13
C99: 90 | D99: 1.731030946e+13 | E99: 1.060411773e-23 | F99: 0.0003007286598 | G99: 5.520192102e-14
C100: 91 | D100: 1902231808400 | E100: 5.891176516e-24 | F100: 0.0006766394846 | G100: 7.582681459e-15
C101: 92 | D101: 1.860878943e+11 | E101: 3.272875842e-24 | F101: 0.00152243884 | G101: 9.272300698e-16
C102: 93 | D102: 1.60075608e+10 | E102: 1.818264357e-24 | F102: 0.003425487391 | G102: 9.970215804e-17
C103: 94 | D103: 1192052400 | E103: 1.010146865e-24 | F103: 0.007707346629 | G103: 9.280785988e-18
C104: 95 | D104: 75287520 | E104: 5.611927027e-25 | F104: 0.01734152992 | G104: 7.326936306e-19
C105: 96 | D105: 3921225 | E105: 3.117737237e-25 | F105: 0.03901844231 | G105: 4.770140824e-20
C106: 97 | D106: 161700 | E106: 1.732076243e-25 | F106: 0.0877914952 | G106: 2.458835476e-21
C107: 98 | D107: 4950 | E107: 9.622645794e-26 | F107: 0.1975308642 | G107: 9.408809221e-23
C108: 99 | D108: 100 | E108: 5.34591433e-26 | F108: 0.4444444444 | G108: 2.375961924e-24
C109: 100 | D109: 1 | E109: 2.969952406e-26 | F109: 1 | G109: 2.969952406e-26
G111: =SUM(G9:G109) -> 1
